Workbook

Sheet List of Tables
A1: Annotated template tables for the preparation and presentation of the performance plans for RP1
A3: LIST OF TABLES
A4: Table 1: Structure for national/FAB performance plans
A5: Table 2: KPIs for Local Target Setting in RP1
A6: Table 3: Presentation of the national/FAB targets and thresholds for RP1
A7: Table 4: Presentation of the en-route capacity target for RP1
A8: Table 5: Presentation of the en-route cost-efficiency target for RP1
A9: Table 6: EU-wide targets and associated thresholds for RP1
A10: Table 7: En-route capacity target – details at national/FAB level
A11: Table 8: En-route service units forecast used for the calculation of the national/FAB en-route cost-efficiency target
A12: Table 9: National/FAB determined en-route costs – breakdown per entity (in nominal terms in national currency)
A13: Table 10: National/FAB determined en-route costs – Breakdown by nature (in nominal terms in national currency)
A14: Table 11: National/FAB determined en-route costs – total in real 2009 terms
A15: Table 12: National/FAB real en-route determined unit rate (in national/FAB currency at 2009 prices and in EUR2009)
A16: Table 13: National/FAB costs for terminal ANS – Breakdown per entity/charging zone (in nominal terms in national currency)
A17: Table 14: Carry-overs from the years before RP1 - under (-) and over (+) –recoveries (in nominal terms in national currency)
A18: Table 15: Incentive schemes for RP1
A19: Table 16: Presentation of the incentive schemes at National/FAB level for RP1
A20: Table 17: Entity “x” - Contribution to the National/FAB capacity target (at ANSP and/or ACC level)
A21: Table 18: Entity “x” - Determined en-route ANS costs by nature (in nominal terms in national currency)
A22: Table 19: Entity “x” - Determined en-route ANS costs by service (in nominal terms in national currency)
A23: Table 20: Entity “x” - En-route complementary information on the cost of capital (in nominal terms in national currency)
A24: Table 21: Entity “x” - Terminal ANS costs in national currency
A25: Table 22: Entity “x” - Annual investments (capex) in nominal terms in national currency for en-route and terminal ANS
A26: Table 23: Entity “x” - Description of the main investments impacting RP1 (in nominal terms in national currency)
A27: Table 24: Approach to describing individual entity’s incentive schemes
A30: Legend for tabs colour codes
A31: White: | B31: Information tables for the purpose of the guidance material only
A32: Violet: | B32: performance plan tables - general presentation at national/FAB level
A33: Dark Blue: | B33: performance plan tables - capacity target at national/FAB level
A34: Light Blue: | B34: performance plan tables - capacity target at entity "x" level - to be replicated for each accountable entity
A35: Dark green: | B35: performance plan tables - cost-efficiency target at national/FAB level
A36: Light Green: | B36: performance plan tables - cost-efficiency target at entity "x" level - to be replicated for each accountable entity

Sheet T3-T&thresh.
A2: KPA | B2: KPI | C2: National/FAB targets | F2: National/FAB thresholds
C3: 2012 | D3: 2013 | E3: 2014
A4: (a) Safety | B4: Safety maturity -regulator. | C4: Managing and measuring | D4: Managing and measuring | E4: Continuous improvement
B5: Overall score
A6: (b) Capacity | B6: En-route ATFM delay (minutes per flight) | C6: 0.04 | D6: 0.04 | E6: 0.05 | F6: A deviation over a calendar year by at least 10% of the actual traffic recorded by the PRB versus the traffic forecasts.
A11: (c) Environment
A13: (d) Cost-efficiency | B13: Determined en-route unit rate (2009 prices in national currency) | C13: =+'T12-DUR'!F6 -> 481.5232064 | D13: =+'T12-DUR'!G6 -> 465.7888549 | E13: =+'T12-DUR'!H6 -> 444.9686275 | F13: A deviation over a calendar year by at least 10% of the actual traffic recorded by the PRB versus the traffic forecasts
A15: Table 3: Presentation of the national targets and thresholds for RP1

Sheet T16-Incentives
A2: KPA | B2: Incentive schemes applied on ANSPs at National level for RP1
A4: (a) Safety | B4: No incentive schemes
A6: (b) Capacity | B6: No incentive schemes
A8: (c) Environment | B8: No incentive schemes
A10: (d) Cost-efficiency | B10: The cost risk-sharing mechanism provides that costs in excess of the determined cost shall be borne by the entity concerned, and if costs fall short of the determined costs, the entity may retain the shortfall.
A13: Table 16: Presentation of the incentive schemes at National level for RP1

Sheet T4-Capa T
A2: Capacity KPI | B2: 2012 | D2: 2013 | F2: 2014
B3: Intermediate Value | D3: Intermediate Value | F3: Target
A4: Minutes of en-route ATFM delay per flight | B4: 0.04 | D4: 0.04 | F4: 0.05
A6: Table 4: Presentation of the en-route capacity target for RP1

Sheet T7-Capa T
B2: 2009A | C2: 2010A | D2: 2011F | E2: 2012F | F2: 2013F | G2: 2014T
A3: En-route ATFM delay prior to RP1 (en-route ATFM delay minutes per flight) | B3: 0.13 | C3: 0.05 | D3: 0
A4: Reference value from the capacity planning process of EUROCONTROL (en-route ATFM delay minutes per flight) | E4: 0.04 | F4: 0.04 | G4: 0.05
A5: % n/n-1
A6: National/FAB capacity target (en-route ATFM delay in minutes per flight) | E6: 0.04 | F6: 0.04 | G6: 0.05
A7: % n/n-1
A8: Difference between the target and the reference value | E8: 0 | F8: 0 | G8: 0
A10: Table 7: En-route capacity target – details at national level

Sheet T17-X-Capa contrib
A2: Avinor A/S | B2: 2009A | C2: 2010A | D2: 2011F | E2: 2012F | F2: 2013F | G2: 2014T
A3: En-route ATFM delay prior to RP1 (en-route ATFM delay minutes per flight) for the ANSP/ACC | B3: 0.13 | C3: 0.05 | D3: 0
A4: Reference value from the capacity planning process of EUROCONTROL (en-route ATFM delay minutes per flight) for the ANSP/ACC | E4: 0.04 | F4: 0.04 | G4: 0.05
A5: % n/n-1
A6: En-route ATFM delay per flight (minutes per flight) for the ANSP/ACC | E6: 0.04 | F6: 0.04 | G6: 0.05
A7: % n/n-1
A8: Difference between the ANSP/ACC contribution and the reference value for the ANSP/ACC | E8: 0 | F8: 0 | G8: 0
A10: Table 17: Entity Avinor A/S - Contribution to the National capacity target at ANSP level)

Sheet T5-Costeff T
A2: Cost-efficiency KPI | B2: 2012 | D2: 2013 | F2: 2014
B3: Target | D3: Target | F3: Target
A4: Real en-route determined unit rate (in national currency at 2009 prices) | B4: =+'T12-DUR'!F6 -> 481.5232064 | D4: =+'T12-DUR'!G6 -> 465.7888549 | F4: =+'T12-DUR'!H6 -> 444.9686275
A6: Table 5: Presentation of the en-route cost-efficiency target for RP1

Sheet T8-SUF
B2: 2009 A | C2: 2010 A | D2: 2011 F | E2: 2012 F | F2: 2013 F | G2: 2014 F
A3: En-route total service units prior to RP1 | B3: 1.494584 | C3: 1.582742 | D3: 1.701332
A4: Forecast total service units used for the determined unit rate | E4: 1.753798 | F4: 1.797642 | G4: 1.842584
A5: Source: | D5: Statfor | E5: Statfor | F5: 2.5% | G5: 2.5 %
A6: % n/n-1 | C6: =+(C3-B3)/B3 -> 0.05898497508 | D6: =+(D3-C3)/C3 -> 0.07492693061 | E6: =+(E4-D3)/D3 -> 0.03083819031 | F6: =+(F4-E4)/E4 -> 0.02499945832 | G6: =+(G4-F4)/F4 -> 0.02500052847
A7: STATFOR service units forecast (Baseline scenario) | B7: =+B3 -> 1.494584 | C7: 1.583
A8: Date of STATFOR SU forecast: | B8: A | C8: A | D8: 2011-09-01 | E8: 2011-09-01
A9: % n/n-1
A11: Table 8: En-route service units forecast used for the calculation of the national en-route cost-efficiency target

Sheet T9-10-DC
A2: ANS en-route cost per entity | B2: Currency | C2: 2009 A | D2: 2010 A | E2: 2011 F | F2: 2012 D | G2: 2013 D | H2: 2014 D
A3: Avinor A/S | B3: NOK | C3: 724.1215 | D3: 728.768353 | E3: 765.057623 | F3: 809.987 | G3: 816.253 | H3: 812.985
A4: % n/n-1 | D4: =+(D3-C3)/C3 -> 0.006417228324 | E4: =+(E3-D3)/D3 -> 0.04979534286 | F4: =+(F3-E3)/E3 -> 0.05872678822 | G4: =+(G3-F3)/F3 -> 0.007735926626 | H4: =+(H3-G3)/G3 -> -0.00400366063
A5: MET | B5: NOK | C5: 12.5929 | D5: 8.336405 | E5: 8.477 | F5: 8.303 | G5: 8.189 | H5: 8.108
A6: % n/n-1 | D6: =+(D5-C5)/C5 -> -0.3380075281 | E6: =+(E5-D5)/D5 -> 0.01686518349 | F6: =+(F5-E5)/E5 -> -0.02052612953 | G6: =+(G5-F5)/F5 -> -0.01372997712 | H6: =+(H5-G5)/G5 -> -0.009891317621
A7: NSA | B7: NOK | C7: 79.6292 | D7: 74.15985015 | E7: 61.01925532 | F7: 64.777 | G7: 65.133616 | H7: 66.51548
A8: % n/n-1 | D8: =+(D7-C7)/C7 -> -0.06868522918 | E8: =+(E7-D7)/D7 -> -0.1771928449 | F8: =+(F7-E7)/E7 -> 0.06158293247 | G8: =+(G7-F7)/F7 -> 0.005505287371 | H8: =+(H7-G7)/G7 -> 0.02121583423
A9: Total determined costs in nominal terms | B9: NOK | C9: 816.3436 | D9: 811.2646081 | E9: 834.5538783 | F9: 883.067 | G9: 889.575616 | H9: 887.60848
A10: % n/n-1 | D10: =+(D9-C9)/C9 -> -0.006221634923 | E10: =+(E9-D9)/D9 -> 0.02870736618 | F10: =+(F9-E9)/E9 -> 0.05813060479 | G10: =+(G9-F9)/F9 -> 0.007370466794 | H10: =+(H9-G9)/G9 -> -0.002211319605
A12: Table 9: National determined en-route costs – breakdown per entity (in nominal terms in national currency)
A14: ANS en-route cost per nature | B14: Currency | C14: 2009 A | D14: 2010 A | E14: 2011 F | F14: 2012 D | G14: 2013 D | H14: 2014 D
A15: Staff | B15: NOK | C15: 507.145446 | D15: 523.3224301 | E15: 551.7802687 | F15: 572.4857282 | G15: 578.8067479 | H15: 585.538051
A16: % n/n-1 | D16: =+(D15-C15)/C15 -> 0.03189811574 | E16: =+(E15-D15)/D15 -> 0.05437916843 | F16: =+(F15-E15)/E15 -> 0.03752482775 | G16: =+(G15-F15)/F15 -> 0.0110413577 | H16: =+(H15-G15)/G15 -> 0.01162962098
A17: Other operating costs | B17: NOK | C17: 246.477786 | D17: 218.3481781 | E17: 210.4264527 | F17: 208.1932718 | G17: 204.2928681 | H17: 200.447429
A18: % n/n-1 | D18: =+(D17-C17)/C17 -> -0.1141263412 | E18: =+(E17-D17)/D17 -> -0.03628024501 | F18: =+(F17-E17)/E17 -> -0.01061264317 | G18: =+(G17-F17)/F17 -> -0.01873453292 | H18: =+(H17-G17)/G17 -> -0.0188231686
A19: Depreciation | B19: NOK | C19: 43.93461554 | D19: 51.799 | E19: 45.474 | F19: 56.041 | G19: 56.058 | H19: 48.66
A20: % n/n-1 | D20: =+(D19-C19)/C19 -> 0.1790020093 | E20: =+(E19-D19)/D19 -> -0.1221066044 | F20: =+(F19-E19)/E19 -> 0.2323745437 | G20: =+(G19-F19)/F19 -> 0.0003033493335 | H20: =+(H19-G19)/G19 -> -0.1319704592
A21: Cost of capital | B21: NOK | C21: 18.78575255 | D21: 17.795 | E21: 26.873 | F21: 46.347 | G21: 50.418 | H21: 52.963
A22: % n/n-1 | D22: =+(D21-C21)/C21 -> -0.05273957187 | E22: =+(E21-D21)/D21 -> 0.5101432987 | F22: =+(F21-E21)/E21 -> 0.7246678823 | G22: =+(G21-F21)/F21 -> 0.08783740048 | H22: =+(H21-G21)/G21 -> 0.05047800389
A23: Exceptional items | B23: NOK | C23: 0 | D23: 0 | E23: 0 | F23: 0 | G23: 0 | H23: 0
A24: % n/n-1
A25: Total determined costs in nominal terms | B25: NOK | C25: 816.3436 | D25: 811.2646081 | E25: 834.5537213 | F25: 883.067 | G25: 889.575616 | H25: 887.60848
A26: % n/n-1 | D26: =+(D25-C25)/C25 -> -0.006221634923 | E26: =+(E25-D25)/D25 -> 0.02870717265 | F26: =+(F25-E25)/E25 -> 0.05813080385 | G26: =+(G25-F25)/F25 -> 0.007370466794 | H26: =+(H25-G25)/G25 -> -0.002211319605
A28: Table 10: National determined en-route costs – Breakdown by nature (in nominal terms in national currency)
A31: ANS en-route cost per entity | B31: Currency | C31: 2009 A | D31: 2010 A | E31: 2011 F | F31: 2012 D | G31: 2013 D | H31: 2014 D
A32: MET | B32: NOK | C32: 12.5929 | D32: 8.336405 | E32: 8.477 | F32: 8.303 | G32: 8.189 | H32: 8.108
A33: % n/n-1 | D33: =+(D32-C32)/C32 -> -0.3380075281 | E33: =+(E32-D32)/D32 -> 0.01686518349 | F33: =+(F32-E32)/E32 -> -0.02052612953 | G33: =+(G32-F32)/F32 -> -0.01372997712 | H33: =+(H32-G32)/G32 -> -0.009891317621
A34: NSA | B34: NOK | C34: 4.5632 | D34: 2.267 | E34: 2.427 | F34: 2.377 | G34: 2.344 | H34: 2.321
A35: % n/n-1 | D35: =+(D34-C34)/C34 -> -0.5031995091 | E35: =+(E34-D34)/D34 -> 0.0705778562 | F35: =+(F34-E34)/E34 -> -0.02060156572 | G35: =+(G34-F34)/F34 -> -0.01388304586 | H35: =+(H34-G34)/G34 -> -0.009812286689
A36: Total determined costs in nominal terms | B36: NOK | C36: =+C32+C34 -> 17.1561 | D36: 10.603405 | E36: 10.904 | F36: 10.68 | G36: 10.533 | H36: 10.429
A37: % n/n-1 | D37: =+(D36-C36)/C36 -> -0.3819454888 | E37: =+(E36-D36)/D36 -> 0.02834891245 | F37: =+(F36-E36)/E36 -> -0.02054292003 | G37: =+(G36-F36)/F36 -> -0.01376404494 | H37: =+(H36-G36)/G36 -> -0.009873730181
A38: Table 9B: National determined en-route costs – breakdown per entity (in nominal terms in national currency), ex. Eurocontrol cost

Sheet T11-DC-Rterms
B2: Currency | C2: 2009 A | D2: 2010 A | E2: 2011 F | F2: 2012 D | G2: 2013 D | H2: 2014 D
A3: Total determined costs in nominal terms | B3: NOK | C3: 816.3436 | D3: 811.2646081 | E3: 834.5537213 | F3: 883.067 | G3: 889.575616 | H3: 887.60848
A4: Inflation % | D4: 0.017 | E4: 0.014 | F4: 0.014 | G4: 0.016 | H4: 0.019
A5: Inflation index (100 in 2009) | C5: 100 | D5: 101.7 | E5: 103.1238 | F5: 104.5675332 | G5: 106.2406137 | H5: 108.2591854
A6: Total determined costs in real 2009 terms | B6: NOK | C6: 816.3436 | D6: 797.7032479 | E6: 809.2737839 | F6: 844.4944363 | G6: 837.3216087 | H6: 819.8920736
A7: % n/n-1 | D7: =+(D6-C6)/C6 -> -0.02283395382 | E7: =+(E6-D6)/D6 -> 0.01450481235 | F7: =+(F6-E6)/E6 -> 0.0435213065 | G7: =+(G6-F6)/F6 -> -0.008493635046 | H7: =+(H6-G6)/G6 -> -0.02081581904
A9: Table 11: National determined en-route costs – total in real 2009 terms

Sheet T12-DUR
B2: Currency | C2: 2009 A | D2: 2010 A | E2: 2011 F | F2: 2012 D | G2: 2013 D | H2: 2014 D | J2: Average per annum
J3: 2009-2014 | K3: 2011-2014
A4: Determined costs in real terms (in national currency at 2009 prices) | B4: NOK | C4: =+'T11-DC-Rterms'!C6 -> 816.3436 | D4: 797.7032479 | E4: 809.2737839 | F4: 844.4944363 | G4: 837.3216087 | H4: 819.8920736
A5: Total en-route SUs | C5: 1.494584 | D5: 1.582742 | E5: 1.701332 | F5: 1.753798 | G5: 1.797642 | H5: 1.842584
A6: Real en-route determined unit rate in national currency (at 2009 prices) | B6: NOK | C6: =C4/C5 -> 546.2012172 | D6: 504.0008087 | E6: 475.6707003 | F6: 481.5232064 | G6: 465.7888549 | H6: 444.9686275
A7: % n/n-1 | D7: =+(D6-C6)/C6 -> -0.07726165227 | E7: =+(E6-D6)/D6 -> -0.05621044234 | F7: =+(F6-E6)/E6 -> 0.01230369258 | G7: =+(G6-F6)/F6 -> -0.03267620592 | H7: =+(H6-G6)/G6 -> -0.04469885258
A8: 2009 Exchange rate (1 EUR=)
A9: Real en-route determined unit rates (in 2009 EUR at 2009 exchange rate)
A10: % n/n-1
A11: EU-wide target: average determined en-route unit rate (in 2009 EUR) | B11: 2009 EUR | F11: 57.88 | G11: 55.87 | H11: 53.92 | J11: -0.032 | K11: -0.035
A13: Table 12: National real en-route determined unit rate (in national currency at 2009 prices and in EUR2009)
A14: Forecast 2011 based on the latest forecast Q3 2011

Sheet T13-Term costs
A2: ANS terminal cost per entity | B2: Currency | C2: 2009 A | D2: 2010 A | E2: 2011 F | F2: 2012 D | G2: 2013 D | H2: 2014 D
A3: Avinor A/S | B3: NOK | D3: 393068.3574 | E3: 402501.1535 | F3: 435647.6131 | G3: 420289.3205 | H3: 426720.2934
A4: % n/n-1 | E4: =+(E3-D3)/D3 -> 0.0239978515 | F4: =+(F3-E3)/E3 -> 0.08235121663 | G4: =+(G3-F3)/F3 -> -0.03525393509 | H4: =+(H3-G3)/G3 -> 0.01530129996
A5: Meterologisk institutt | B5: NOK | D5: 5749.889269 | E5: 5826.143 | F5: 4951.19 | G5: 5885.084658 | H5: 5862.617318
A6: % n/n-1 | E6: =+(E5-D5)/D5 -> 0.01326177376 | F6: =+(F5-E5)/E5 -> -0.1501770554 | G6: =+(G5-F5)/F5 -> 0.1886202425 | H6: =+(H5-G5)/G5 -> -0.003817674998
A7: NSA (Luftfartstilsynet) | B7: NOK | D7: 955 | E7: 1037.2 | F7: 1046 | G7: 963.5395073 | H7: 951.8654399
A8: % n/n-1 | E8: =+(E7-D7)/D7 -> 0.08607329843 | F8: =+(F7-E7)/E7 -> 0.008484381026 | G8: =+(G7-F7)/F7 -> -0.07883412305 | H8: =+(H7-G7)/G7 -> -0.01211581602
A9: Total terminal costs in nominal terms | B9: NOK | D9: 399773.2467 | E9: 409364.4965 | F9: 441644.8031 | G9: 427137.9446 | H9: 433534.7762
A10: % n/n-1 | E10: =+(E9-D9)/D9 -> 0.02399172501 | F10: =+(F9-E9)/E9 -> 0.07885468076 | G10: =+(G9-F9)/F9 -> -0.0328473434 | H10: =+(H9-G9)/G9 -> 0.01497603207
A12: Table 13: National costs for terminal ANS – Breakdown per entity zone (in nominal terms in national currency)

Sheet T14 - COs
A2: Carry-over from | B2: To 2009 | C2: To 2010 | D2: To 2011 | E2: To 2012 | F2: To 2013 | G2: To 2014 | H2: To 2015 | I2: To RP2
A3: 2003
A4: 2004
A5: 2005
A6: 2006
A7: 2007 | B7: 62
A8: 2008 | C8: -42 | D8: -20
A9: 2009 | D9: 8
A10: 2010 | E10: -31 | F10: -31 | G10: -31
A11: 2011
A12: Total
A14: Table 14: Carry-overs from the years before RP1 - under (-) and over (+) –recoveries (in nominal terms in national currency)

Sheet T18-20-X-ERDC
A2: Avinor A/S | B2: Currency | C2: 2009 A | D2: 2010 A | E2: 2011 F | F2: 2012 D | G2: 2013 D | H2: 2014 D
A3: Staff | B3: NOK | C3: 495.820656 | D3: 514.1559953 | E3: 542.3924178 | F3: 563.248804 | G3: 569.7379979 | H3: 576.558901
A4: Other operating costs | B4: NOK | C4: 165.580476 | D4: 145.0183577 | E4: 150.3182052 | F4: 144.350196 | G4: 140.0390021 | H4: 134.803099
A5: Depreciation | B5: NOK | C5: 43.93461554 | D5: 51.799 | E5: 45.474 | F5: 56.041 | G5: 56.058 | H5: 48.66
A6: Cost of capital | B6: NOK | C6: 18.78575255 | D6: 17.795 | E6: 26.873 | F6: 46.347 | G6: 50.418 | H6: 52.963
A7: Exceptional items | B7: NOK | C7: 0 | D7: 0 | E7: 0 | F7: 0 | G7: 0 | H7: 0
A8: Total en-route costs | B8: NOK | C8: 724.1215 | D8: 728.768353 | E8: 765.057623 | F8: 809.987 | G8: 816.253 | H8: 812.985
A10: Table 18: Entity Avinor A/S - Determined en-route ANS costs by nature (in nominal terms in national currency)
A12: Avinor A/S | B12: Currency | C12: 2009 A | D12: 2010 A | E12: 2011 F | F12: 2012 D | G12: 2013 D | H12: 2014 D
A13: Air Traffic Management | B13: NOK | C13: 372.8216457 | D13: 375.6290722 | E13: 405.4334186 | F13: 431.2641258 | G13: 434.0958858 | H13: 431.7771258
A14: Communication | B14: NOK | C14: 13.8082091 | D14: 13.91218786 | E14: 15.01605254 | F14: 15.9727454 | G14: 16.0776254 | H14: 15.9917454
A15: Navigation | B15: NOK | C15: 220.9313456 | D15: 222.5950057 | E15: 240.2568406 | F15: 255.5639264 | G15: 257.2420064 | H15: 255.8679264
A16: Surveillance | B16: NOK | C16: 82.8492546 | D16: 83.47312715 | E16: 90.09631524 | F16: 95.8364724 | G16: 96.4657524 | H16: 95.9504724
A17: Search and rescue | B17: NOK | C17: 0 | D17: 0 | E17: 0 | F17: 0 | G17: 0 | H17: 0
A18: Aeronautical Information | B18: NOK | C18: 33.71104497 | D18: 33.15896006 | E18: 14.254996 | F18: 11.34973 | G18: 12.37173 | H18: 13.39773
A19: Meteorological services | B19: NOK | C19: 0 | D19: 0 | E19: 0 | F19: 0 | G19: 0 | H19: 0
A20: Supervision costs | B20: NOK | C20: 0 | D20: 0 | E20: 0 | F20: 0 | G20: 0 | H20: 0
A21: Other State costs | B21: NOK | C21: 0 | D21: 0 | E21: 0 | F21: 0 | G21: 0 | H21: 0
A22: Total costs | B22: NOK | C22: 724.1215 | D22: 728.768353 | E22: 765.057623 | F22: 809.987 | G22: 816.253 | H22: 812.985
A24: Table 19: Entity Avinor A/S- Determined en-route ANS costs by service (in nominal terms in national currency)
A26: Avinor A/S | B26: Currency | C26: 2009 A | D26: 2010 A | E26: 2011 F | F26: 2012 D | G26: 2013 D | H26: 2014 D
A27: Net book value fixed assets | B27: NOK | D27: 187.3157895 | E27: 364 | F27: 499 | G27: 552 | H27: 588
A28: Adjustments to total assets | B28: NOK | D28: 0 | E28: 0 | F28: 0 | G28: 0 | H28: 0
A29: Net current assets | B29: NOK | D29: 0 | E29: 0 | F29: 110.8984033 | G29: 111.7452565 | H29: 109.0376311
A30: Total asset base | B30: NOK | D30: 187.3157895 | E30: 364 | F30: 609.8984033 | G30: 663.7452565 | H30: 697.0376311
A31: Cost of capital pre tax rate % | D31: 0.095 | E31: 0.095 | F31: 0.07599134503 | G31: 0.07595986488 | H31: 0.07598298519
A32: Return on equity % | D32: 0.0984 | E32: 0.0984 | F32: 0.084 | G32: 0.084 | H32: 0.084
A33: Average interest on debts % | D33: 0.0384 | E33: 0.0384 | F33: 0.039 | G33: 0.039 | H33: 0.039
A35: Table 20: Entity Avinor A/S - Complementary information on the cost of capital en-route (in nominal terms in national currency)

Sheet T21-X-TNC costs
A2: Avinor A/S | B2: Currency | C2: 2009 A | D2: 2010 A | E2: 2011 F | F2: 2012 D | G2: 2013 D | H2: 2014 D
A3: Staff | B3: NOK | D3: 252611.1213 | E3: 263399.4322 | F3: 284237.95 | G3: 271506.6079 | H3: 269371.519
A4: Other operating costs | B4: NOK | D4: 85363.57376 | E4: 91122.11073 | F4: 97309.95 | G4: 93178.24779 | H4: 92583.59104
A5: Depreciation | B5: NOK | D5: 36123.70014 | E5: 35911.34892 | F5: 40842.95192 | G5: 39771.72115 | H5: 41864.375
A6: Cost of capital | B6: NOK | D6: 25674.85148 | E6: 18931.6046 | F6: 19253.95121 | G6: 22681.36781 | H6: 29715.29113
A7: Exceptional items | B7: NOK | D7: 0 | E7: 0 | F7: 0 | G7: 0 | H7: 0
A8: Total terminal costs | B8: NOK | D8: 399773.2467 | E8: 409364.4965 | F8: 441644.8031 | G8: 427137.9446 | H8: 433534.7762
A10: Table 21: Entity Avinor A/S - Terminal ANS costs in national currency

Sheet T22-23-Capex
A2: Capital expenditure (national currency) | B2: Cur-rency | C2: 2009A | D2: 2010A | E2: 2011F | F2: 2012F | G2: 2013F | H2: 2014F | I2: 2015F | J2: 2016F
A3: NORAP | B3: NOK | C3: 82164 | D3: 6287 | E3: 11848
A4: OSLO ASAP (innkl. OASE) | B4: NOK | C4: 54192 | D4: 16369 | E4: 5100
A5: ADS-B-Ekofisk | B5: NOK | E5: 16350 | F5: 12500 | G5: 2400
A6: SNAP | B6: NOK | E6: 4992 | F6: 40953 | G6: 13141
A7: BOAS | B7: NOK | E7: 3000 | F7: 20000 | G7: 10000
A8: ATM-systems | B8: NOK | F8: 98338 | G8: 86838 | H8: 145638 | I8: 154938 | J8: 150338
A9: Sub-total main Capex above | B9: NOK
A10: Sub-total others Capex | B10: NOK
A11: Total Capex | B11: NOK
A13: Table 22: Entity Avinor A/S - Annual investments (capex) in nominal terms in national currency for en-route and terminal ANS
A15: CAPEX Project ID
A16: Domain (ex. ATM Systems, C, N, S,..)
A17: Allocation en-route / terminal ANS
A18: Assessed impact on Performance Targets
A19: (Planned) Start date of investment project
A20: (Planned) Commissioning date of investment
A21: Lifecycle (Amortisation periods in years)
A22: Planned total capex (in national currency)
A23: European ATM Master Plan (OIs reference)
A24: Related SES IR / Community Specifications.
A26: CAPEX Project ID
A27: Domain (ex. ATM Systems, C, N, S,..)
A28: Allocation en-route / terminal ANS
A29: Assessed impact on Performance Targets
A30: (Planned) Start date of investment project
A31: (Planned) Commissioning date of investment
A32: Lifecycle (Amortisation periods in years)
A33: Planned total capex (in national currency)
A34: European ATM Master Plan (OIs reference)
A35: Related SES IR / Community Specifications.
A37: CAPEX Project ID
A38: Domain (ex. ATM Systems, C, N, S,..)
A39: Allocation en-route / terminal ANS
A40: Assessed impact on Performance Targets
A41: (Planned) Start date of investment project
A42: (Planned) Commissioning date of investment
A43: Lifecycle (Amortisation periods in years)
A44: Planned total capex (in national currency)
A45: European ATM Master Plan (OIs reference)
A46: Related SES IR / Community Specifications.
A48: CAPEX Project ID
A49: Domain (ex. ATM Systems, C, N, S,..)
A50: Allocation en-route / terminal ANS
A51: Assessed impact on Performance Targets
A52: (Planned) Start date of investment project
A53: (Planned) Commissioning date of investment
A54: Lifecycle (Amortisation periods in years)
A55: Planned total capex (in national currency)
A56: European ATM Master Plan (OIs reference)
A57: Related SES IR / Community Specifications.
A59: CAPEX Project ID
A60: Domain (ex. ATM Systems, C, N, S,..)
A61: Allocation en-route / terminal ANS
A62: Assessed impact on Performance Targets
A63: (Planned) Start date of investment project
A64: (Planned) Commissioning date of investment
A65: Lifecycle (Amortisation periods in years)
A66: Planned total capex (in national currency)
A67: European ATM Master Plan (OIs reference)
A68: Related SES IR / Community Specifications.
A70: Table 23: Entity “x” - Description of the main investments impacting RP1 (in nominal terms in national currency)
